bitfinex/quotes_BTCUSD_20250408
["timestamp","ask_amount","ask_price","bid_price","bid_amount"]
[1744135278798,0.34,77321.0,77319.0,0.258665]
[1744135279001,0.34,77321.0,77320.0,0.012933]
[1744135279206,0.012933,77320.0,77316.0,0.00974826]
[1744135279412,0.012933,77320.0,77315.0,0.01454085]
[1744135279619,0.012933,77316.0,77311.0,0.20716]
[1744135279772,0.258676,77317.0,77312.0,0.25869]
[1744135279977,0.271603,77319.0,77313.0,0.27203879]
[1744135280204,0.001,77321.0,77320.0,0.012933]
[1744135280423,0.001,77321.0,77319.0,0.258667]
[1744135280619,0.34,77322.0,77319.0,0.258667]
[1744135280938,0.258639,77328.0,77319.0,0.258667]
[1744135280939,0.34,77329.0,77322.0,0.012932]
[1744135281137,0.34,77327.0,77323.0,0.258654]
[1744135281346,0.258645,77326.0,77317.0,0.258675]
[1744135281544,0.271577,77326.0,77321.0,0.27320085]
[1744135281701,0.01294276,77333.0,77327.0,0.012932]
[1744135281881,0.258643,77327.0,77322.0,0.271589]
[1744135282090,0.258646,77326.0,77323.0,0.01454085]
[1744135282335,0.012931,77329.0,77323.0,0.27319385]
[1744135282542,0.258664,77321.0,77314.0,0.2072]
[1744135282716,0.012934,77315.0,77314.0,0.2072]
[1744135283099,0.258679,77316.0,77314.0,0.2072]
[1744135283314,0.271612,77317.0,77314.0,0.2072]
[1744135283315,0.012933,77317.0,77314.0,0.2072]
[1744135283520,0.271612,77316.0,77314.0,0.2072]
[1744135284075,0.001,77315.0,77314.0,0.2142]
[1744135284275,0.001,77315.0,77314.0,0.2092]
[1744135284784,0.001,77315.0,77314.0,0.23667485]
[1744135284905,0.001,77315.0,77314.0,0.2092]
[1744135285100,0.001,77315.0,77314.0,0.23667485]
[1744135285309,0.01293,77337.0,77329.0,0.258631]
[1744135285552,0.271539,77337.0,77331.0,0.271559]
[1744135285792,0.258617,77335.0,77330.0,0.012931]
[1744135285979,0.25862,77334.0,77330.0,0.012931]
[1744135286159,0.25862,77334.0,77329.0,0.271564]
[1744135286360,0.001,77333.0,77332.0,0.012931]
[1744135287105,0.25861,77337.0,77333.0,0.258621]
[1744135287322,0.25861,77337.0,77333.0,0.271552]
[1744135287507,0.27154,77337.0,77332.0,0.012931]
[1744135287710,0.271535,77338.0,77333.0,0.271552]
[1744135288138,0.02576813,77340.0,77334.0,0.01293]
[1744135288319,0.01283913,77340.0,77339.0,0.271531]
[1744135288543,0.012928,77351.0,77344.0,0.012929]
[1744135288664,0.258562,77351.0,77345.0,0.012929]
[1744135288867,0.012926,77360.0,77353.0,0.012927]
[1744135289116,0.258542,77357.0,77354.0,0.25855]
[1744135289357,0.258519,77364.0,77359.0,0.012926]
[1744135289554,0.258519,77364.0,77354.0,0.012927]
[1744135289555,0.258524,77362.0,77357.0,0.012927]
[1744135289754,0.01293,77339.0,77333.0,0.0484]
[1744135289963,0.258585,77344.0,77336.0,0.02747085]
[1744135290156,0.2586,77340.0,77336.0,0.01293]
[1744135290316,0.258605,77338.0,77336.0,0.01454085]
[1744135290518,0.012928,77348.0,77337.0,0.01293]
[1744135290740,0.258598,77340.0,77336.0,0.2826641]
[1744135290936,0.271538,77337.0,77335.0,1.02464]
[1744135291135,0.598615,77335.0,77334.0,0.2072]
[1744135291337,0.012933,77316.0,77314.0,0.2072]
[1744135291537,0.258665,77320.0,77316.0,0.258677]
[1744135291740,0.012933,77321.0,77315.0,0.012934]
[1744135291899,0.23646898,77325.0,77317.0,0.258674]
[1744135292100,0.012933,77321.0,77316.0,0.012933]
[1744135292305,0.012933,77320.0,77314.0,0.21743791]
[1744135292547,0.001,77316.0,77314.0,0.22343791]
[1744135292932,0.271603,77319.0,77314.0,0.47612091]
[1744135293121,0.271603,77319.0,77317.0,0.001]
[1744135293319,0.271603,77319.0,77316.0,0.003]
[1744135293519,0.012931,77333.0,77327.0,0.25864]
[1744135293765,0.34,77334.0,77328.0,0.012931]
[1744135293902,0.12625864,77333.0,77316.0,0.003]
[1744135294109,0.012933,77317.0,77316.0,0.003]
[1744135294389,0.258673,77318.0,77314.0,0.20761879]
[1744135294390,0.013933,77319.0,77314.0,0.20761879]
[1744135294502,0.353933,77319.0,77314.0,0.20761879]
[1744135294709,0.258679,77316.0,77314.0,0.20861879]
[1744135294907,0.012934,77315.0,77314.0,0.20861879]
[1744135295108,0.47919264,77315.0,77314.0,0.00041879]
[1744135295545,0.47919264,77315.0,77314.0,0.00441879]
[1744135296059,0.47919264,77315.0,77314.0,0.00041879]
[1744135296469,0.48119264,77315.0,77314.0,0.00041879]
[1744135296982,0.48119264,77315.0,77291.0,0.20764]
[1744135296983,0.271695,77292.0,77291.0,0.0004]
[1744135297189,0.51978572,77292.0,77291.0,0.0004]
[1744135297367,0.50533564,77292.0,77291.0,0.0004]
[1744135297778,0.39795364,77292.0,77291.0,0.0004]
[1744135298556,0.41082192,77292.0,77291.0,0.0004]
[1744135298955,0.41482192,77292.0,77291.0,0.0004]
[1744135299156,0.75882192,77292.0,77291.0,0.0004]
[1744135299356,0.75482192,77292.0,77291.0,0.0004]
[1744135299603,0.88107737,77292.0,77291.0,0.0004]
[1744135299776,0.76882192,77292.0,77291.0,0.0024]
[1744135300167,0.76482192,77292.0,77291.0,0.0014]
[1744135300373,0.77082192,77292.0,77291.0,0.0024]
[1744135300802,0.49912692,77292.0,77291.0,0.0024]
[1744135301040,0.37286828,77292.0,77291.0,0.0024]
[1744135301281,0.03286828,77292.0,77291.0,0.015338]
[1744135301660,0.01986828,77292.0,77291.0,0.0014]
[1744135302012,0.22109345,77292.0,77291.0,0.0024]
[1744135302209,0.21409345,77292.0,77291.0,0.0014]
[1744135302453,0.20709345,77292.0,77291.0,0.0004]
[1744135302832,0.36680528,77292.0,77291.0,0.0004]
[1744135304003,0.37380528,77292.0,77291.0,0.0014]
[1744135304198,0.50006392,77292.0,77291.0,0.0014]
[1744135304847,0.50706392,77292.0,77291.0,0.0024]
[1744135305529,0.611707,77289.0,77288.0,6e-07]
[1744135305807,0.86422109,77289.0,77288.0,6e-07]
[1744135306590,0.611713,77287.0,77285.0,0.0001676]
[1744135306792,0.73797164,77287.0,77285.0,0.0001676]
[1744135306994,0.73797164,77287.0,77286.0,0.00026492]
[1744135307801,0.611713,77287.0,77286.0,0.00026492]
[1744135308458,0.34,77287.0,77286.0,0.00026492]
[1744135308631,0.598775,77287.0,77286.0,0.00026492]
[1744135308933,0.615713,77287.0,77286.0,0.00026492]
[1744135309085,0.620713,77287.0,77286.0,0.00126492]
[1744135309901,0.83165474,77287.0,77286.0,0.00026492]
[1744135310304,0.83565474,77287.0,77286.0,0.00026492]
[1744135311061,0.74197164,77287.0,77286.0,0.00026492]
[1744135311264,0.74497164,77287.0,77286.0,0.00026492]
[1744135312077,0.01294,77275.0,77273.0,7.2e-07]
[1744135312288,0.352943,77261.0,77260.0,8.2e-07]
[1744135312489,0.271903,77233.0,77232.0,0.20676]
[1744135312767,0.271903,77233.0,77231.0,0.0004]
[1744135312768,0.012948,77232.0,77231.0,0.0004]
[1744135313407,0.012947,77236.0,77231.0,0.0004]
[1744135313408,0.012945,77244.0,77232.0,0.012948]
[1744135313608,0.258922,77244.0,77240.0,0.271877]
[1744135313741,0.34,77245.0,77238.0,0.271885]
[1744135313941,0.012944,77255.0,77244.0,0.012945]
[1744135314137,0.34,77250.0,77244.0,0.01454085]
[1744135314385,0.34,77256.0,77254.0,0.258883]
[1744135314583,0.34,77256.0,77253.0,0.258888]
[1744135314784,0.012942,77262.0,77256.0,0.012943]
[1744135314785,0.34,77262.0,77256.0,0.012943]
[1744135315164,0.01294,77274.0,77266.0,0.012942]
[1744135315496,0.38508364,77273.0,77266.0,0.258845]
[1744135315747,0.012941,77270.0,77262.0,0.012942]
[1744135315938,0.34,77267.0,77263.0,0.258853]
[1744135316156,0.34,77267.0,77262.0,0.00012565]
[1744135316332,0.352942,77263.0,77262.0,0.00012565]
[1744135316557,0.47920064,77263.0,77262.0,0.00012565]
[1744135318556,0.48320064,77263.0,77262.0,0.00012565]
[1744135318755,0.48720064,77263.0,77262.0,0.00012565]
[1744135319537,0.008,77263.0,77262.0,0.00012565]
[1744135319749,0.279798,77263.0,77262.0,0.00012565]
[1744135319923,0.275798,77263.0,77262.0,0.00012565]
[1744135320321,0.006,77263.0,77262.0,0.00012565]
[1744135320737,0.006,77263.0,77262.0,0.01306765]
[1744135320946,0.006,77263.0,77262.0,0.27192665]
[1744135321122,0.002,77263.0,77262.0,0.27192665]
[1744135321341,0.003,77263.0,77262.0,0.27192665]
[1744135321602,0.003,77263.0,77262.0,0.04692565]
[1744135321784,0.272798,77263.0,77262.0,0.00012565]
[1744135321956,0.01284806,77274.0,77273.0,0.258822]
[1744135322128,0.25881,77277.0,77268.0,0.02748185]
[1744135322330,0.34,77279.0,77274.0,0.01294]
[1744135322524,0.01294,77279.0,77270.0,0.012941]
[1744135322776,0.34,77280.0,77277.0,0.258808]
[1744135322978,0.01304603,77279.0,77271.0,0.012941]
[1744135323305,0.01260702,77279.0,77277.0,0.258805]
[1744135323521,0.34,77280.0,77274.0,0.01294]
[1744135323715,0.34,77284.0,77279.0,0.271739]
[1744135323875,0.34,77282.0,77275.0,0.01294]
[1744135324068,0.34,77282.0,77276.0,0.01294]
[1744135324276,0.0741117,77282.0,77274.0,0.01294]
[1744135324500,0.258795,77281.0,77278.0,0.258805]
[1744135324824,0.012939,77282.0,77276.0,0.01294]
[1744135325017,0.004,77280.0,77277.0,0.258809]
[1744135325339,0.2588,77280.0,77277.0,0.258809]
[1744135325502,0.01787964,77282.0,77276.0,0.01294]
[1744135325709,0.005,77282.0,77281.0,0.28627485]
[1744135326136,0.005,77282.0,77281.0,0.41253349]
[1744135326340,0.002,77282.0,77281.0,0.41253349]
[1744135326557,0.012935,77308.0,77301.0,0.258727]
[1744135326682,0.012935,77308.0,77302.0,0.012936]
[1744135326886,0.012935,77308.0,77302.0,0.258723]
[1744135326887,0.258713,77306.0,77302.0,0.258723]
[1744135327137,0.258716,77305.0,77301.0,0.271664]
[1744135327374,0.0004,77309.0,77307.0,0.271643]
[1744135327548,0.0004,77309.0,77305.0,0.258714]
[1744135327720,0.0004,77309.0,77308.0,0.012935]
[1744135327928,0.0004,77309.0,77304.0,0.012935]
[1744135327929,0.258706,77308.0,77304.0,0.271652]
[1744135328129,0.012935,77308.0,77305.0,0.258714]
[1744135328334,0.012935,77308.0,77299.0,0.059736]
[1744135328335,0.012936,77303.0,77295.0,0.012937]
[1744135328515,0.012936,77303.0,77293.0,0.012937]
[1744135328516,0.258729,77301.0,77293.0,0.012937]
[1744135328722,0.012937,77297.0,77296.0,0.2165554]
[1744135329113,0.271674,77299.0,77296.0,0.2165554]
[1744135329304,0.271662,77302.0,77296.0,0.2068]
[1744135329666,0.012935,77306.0,77299.0,0.012936]
[1744135329819,0.012936,77301.0,77297.0,0.01454085]
[1744135330161,0.25872,77304.0,77298.0,0.012936]
[1744135330363,0.005,77308.0,77301.0,0.012936]
[1744135330564,0.35334545,77309.0,77303.0,0.012936]
[1744135330719,0.01334545,77309.0,77306.0,0.258712]
[1744135330928,0.01334545,77309.0,77303.0,0.01454085]
[1744135331146,0.258742,77297.0,77288.0,0.059738]
[1744135331346,0.258735,77299.0,77295.0,0.258748]
[1744135331540,0.271679,77297.0,77291.0,0.012938]
[1744135331730,0.271679,77297.0,77296.0,0.2068]
[1744135332598,0.271679,77297.0,77282.0,0.045]
[1744135332599,0.258786,77284.0,77282.0,0.045]
[1744135332744,0.012938,77291.0,77284.0,0.20676]
[1744135332949,0.258771,77289.0,77285.0,0.258779]
[1744135333173,0.271701,77291.0,77287.0,0.258775]
[1744135333344,0.258766,77290.0,77285.0,0.27172]
[1744135333550,0.25876,77292.0,77285.0,0.271718]
[1744135333792,0.25876,77292.0,77286.0,0.012938]
[1744135333949,0.258765,77290.0,77286.0,0.00012565]
[1744135334155,0.258763,77291.0,77286.0,0.25890365]
[1744135334355,0.001,77289.0,77286.0,0.00012565]
[1744135334565,0.001,77289.0,77286.0,0.25890365]
[1744135334773,0.271701,77291.0,77287.0,0.258774]
[1744135334987,0.012933,77321.0,77307.0,0.271643]
[1744135335250,0.0004,77309.0,77308.0,0.28618085]
[1744135335455,0.0004,77309.0,77308.0,0.33118085]
[1744135335664,0.0004,77309.0,77308.0,0.45743949]
[1744135336092,0.0084,77309.0,77308.0,0.45743949]
[1744135336297,0.0003356,77336.0,77322.0,0.27159]
[1744135336497,0.0003356,77336.0,77322.0,0.41238949]
[1744135336772,0.0003356,77336.0,77322.0,0.45848949]
[1744135337633,0.00075347,77323.0,77322.0,0.46048949]
[1744135337813,0.00075347,77323.0,77322.0,0.49382508]
[1744135338013,0.0003356,77336.0,77335.0,0.271545]
[1744135338218,0.00046096,77336.0,77335.0,0.53724585]
[1744135338625,0.00046096,77336.0,77335.0,1.68846449]
[1744135340006,0.00046096,77336.0,77335.0,1.70122228]
[1744135340335,0.00046096,77336.0,77335.0,1.70622228]
[1744135340959,0.00046096,77336.0,77335.0,1.70322228]
[1744135341167,0.00046096,77336.0,77335.0,1.75632228]
[1744135341369,9.6e-07,77336.0,77335.0,2.09632228]
[1744135341570,9.6e-07,77339.0,77338.0,0.611535]
[1744135341819,9.6e-07,77339.0,77338.0,0.75233449]
[1744135342220,2e-07,77370.0,77369.0,0.012925]
[1744135342430,4e-07,77388.0,77387.0,0.271363]
[1744135342644,2e-07,77389.0,77388.0,0.02746185]
[1744135342863,2e-07,77389.0,77388.0,0.20240423]
[1744135343060,7.5e-07,77389.0,77388.0,0.19982049]
[1744135343265,0.271618,77429.0,77392.0,0.02746185]
[1744135343266,1.5e-07,77395.0,77392.0,0.02746185]
[1744135343461,1.5e-07,77395.0,77394.0,0.02746085]
[1744135343702,1.5e-07,77395.0,77394.0,0.15371949]
[1744135344803,1.5e-07,77395.0,77394.0,0.1563032]
[1744135345169,1.5e-07,77395.0,77394.0,0.15371949]
[1744135345331,1.5e-07,77395.0,77394.0,0.1563032]
[1744135345537,1.5e-07,77395.0,77394.0,0.1653032]
[1744135345978,0.00100015,77395.0,77394.0,0.04546085]
[1744135346180,0.00100015,77395.0,77394.0,0.03092]
[1744135346380,1.5e-07,77395.0,77394.0,0.02192]
[1744135346865,0.00100015,77395.0,77394.0,0.018]
[1744135347319,0.00100015,77395.0,77394.0,0.03092]
[1744135347683,1.5e-07,77395.0,77394.0,0.02192]
[1744135348216,1.5e-07,77395.0,77394.0,0.03004488]
[1744135348435,0.00100015,77395.0,77394.0,0.03646085]
[1744135348621,0.00100015,77395.0,77394.0,0.258417]
[1744135348826,1.5e-07,77395.0,77392.0,0.01454085]
[1744135349028,1.5e-07,77395.0,77391.0,0.012921]
[1744135349029,1.5e-07,77395.0,77394.0,0.001]
[1744135349171,0.00100015,77395.0,77394.0,0.01]
[1744135349376,0.00100015,77395.0,77394.0,0.009]
[1744135349569,1.5e-07,77395.0,77390.0,0.012921]
[1744135349810,0.00100015,77395.0,77394.0,0.01292]
[1744135350011,0.00100015,77395.0,77394.0,0.03004484]
[1744135350241,0.00100015,77395.0,77394.0,0.03104484]
[1744135350633,1.5e-07,77395.0,77394.0,0.15730348]
[1744135350854,0.00100015,77395.0,77394.0,0.15471949]
[1744135351033,0.00100015,77395.0,77394.0,0.02846085]
[1744135351231,0.00100015,77395.0,77394.0,0.001]
[1744135351551,0.012921,77392.0,77386.0,0.20596]
[1744135351898,0.01586946,77392.0,77390.0,0.001]
[1744135352172,0.00100015,77395.0,77386.0,0.218882]
[1744135352373,0.00100015,77395.0,77393.0,0.258419]
[1744135352550,0.00100015,77395.0,77394.0,0.01850411]
[1744135352758,1.5e-07,77395.0,77394.0,0.03004469]
[1744135353071,1.5e-07,77395.0,77394.0,0.03104469]
[1744135353419,1.5e-07,77395.0,77394.0,0.02846085]
[1744135354741,1.5e-07,77395.0,77394.0,0.03146085]
[1744135355143,1.5e-07,77395.0,77394.0,0.20590333]
[1744135355349,1.5e-07,77395.0,77394.0,0.25200333]
[1744135356117,1.5e-07,77395.0,77394.0,0.24541949]
[1744135356319,0.02,77432.0,77408.0,0.012918]
[1744135356525,0.012914,77431.0,77411.0,0.012918]
[1744135356671,0.02,77432.0,77411.0,0.03004207]
[1744135357078,0.258295,77431.0,77411.0,0.03004207]
[1744135357311,0.02,77432.0,77411.0,0.03004207]
[1744135357473,0.0001677,77426.0,77411.0,0.16593804]
[1744135357679,0.0001677,77426.0,77411.0,0.16593785]
[1744135358440,4e-07,77412.0,77411.0,0.55755875]
[1744135358656,4e-07,77412.0,77411.0,0.62422998]
[1744135358860,4e-07,77412.0,77411.0,0.06075045]
[1744135359145,4e-07,77412.0,77411.0,0.03809628]
[1744135359370,4e-07,77412.0,77411.0,0.02517828]
[1744135359480,4e-07,77412.0,77411.0,0.03017828]
[1744135359910,4e-07,77412.0,77411.0,0.05009628]
[1744135360343,4e-07,77412.0,77411.0,0.04309628]
[1744135360544,4e-07,77412.0,77411.0,0.03017828]
[1744135360720,4e-07,77412.0,77411.0,0.04809628]
[1744135361178,4e-07,77412.0,77411.0,0.02063743]
[1744135361361,4e-07,77412.0,77411.0,0.01463743]
[1744135361754,4e-07,77412.0,77411.0,0.01863743]
[1744135361937,0.05296274,77412.0,77411.0,0.00963743]
[1744135362141,0.258361,77411.0,77409.0,0.20588]
[1744135362341,0.012918,77410.0,77409.0,0.20588]
[1744135362785,0.15539272,77410.0,77409.0,0.20588]
[1744135362988,4e-07,77412.0,77411.0,0.271279]
[1744135363350,4e-07,77412.0,77411.0,0.28581985]
[1744135363546,4e-07,77412.0,77411.0,0.01454085]
[1744135363750,4e-07,77412.0,77409.0,0.20588]
[1744135363751,0.258361,77411.0,77409.0,0.20588]
[1744135364110,0.271352,77390.0,77389.0,0.20588]
[1744135364466,0.271352,77390.0,77389.0,0.21538578]
[1744135364847,0.258419,77394.0,77389.0,0.21538578]
[1744135365045,0.258428,77391.0,77389.0,0.00950578]
[1744135365239,0.012921,77390.0,77389.0,0.00950578]
[1744135365544,0.01586203,77390.0,77385.0,0.20588]
[1744135365717,0.258441,77387.0,77385.0,0.20588]
[1744135365894,0.13917964,77393.0,77385.0,0.20588]
[1744135366099,0.258444,77387.0,77385.0,0.20588]
[1744135366765,0.258444,77387.0,77385.0,0.21557099]
[1744135366975,0.001,77391.0,77385.0,0.21557099]
[1744135367096,0.271366,77386.0,77385.0,0.21557099]
[1744135368107,0.271366,77386.0,77385.0,0.21757099]
[1744135368309,0.271397,77377.0,77376.0,1.0236]
[1744135368530,0.271397,77377.0,77376.0,1.03336999]
[1744135368742,0.01292,77398.0,77383.0,0.012922]
[1744135368962,0.012921,77393.0,77385.0,0.272367]
[1744135369362,0.258422,77393.0,77386.0,0.012922]
[1744135369645,0.271295,77406.0,77399.0,0.258398]
[1744135369841,0.012919,77404.0,77395.0,0.01292]
[1744135370065,0.258394,77401.0,77396.0,0.258409]
[1744135370273,0.01569118,77408.0,77402.0,0.012919]
[1744135370430,0.01569118,77408.0,77389.0,0.01195565]
[1744135370431,0.258381,77405.0,77400.0,0.258397]
[1744135370627,0.258375,77407.0,77401.0,0.258393]
[1744135370829,0.34,77409.0,77402.0,0.258389]
[1744135371028,0.012918,77409.0,77401.0,0.271313]
[1744135371487,0.012919,77404.0,77397.0,0.01454085]
[1744135371789,0.01333618,77409.0,77402.0,0.25839]
[1744135371945,0.258371,77408.0,77402.0,0.25839]
[1744135372319,0.258371,77408.0,77394.0,0.258417]
[1744135372320,0.258391,77402.0,77395.0,0.01454085]
[1744135372553,0.258403,77399.0,77395.0,0.01454085]
[1744135372704,0.2584,77400.0,77397.0,0.002]
[1744135372909,0.01571353,77408.0,77406.0,0.258377]
[1744135373079,0.59878618,77409.0,77402.0,0.012919]
[1744135373274,0.00041818,77409.0,77408.0,0.271289]
[1744135373648,0.00041818,77409.0,77404.0,0.218279]
[1744135373837,0.012919,77405.0,77404.0,0.20536]
[1744135374036,0.256837,77397.0,77396.0,0.00961511]
[1744135374240,0.258405,77398.0,77392.0,0.20536]
[1744135374442,0.271289,77408.0,77397.0,0.271326]
[1744135374643,0.258389,77403.0,77398.0,0.01198228]
[1744135374799,0.01636763,77409.0,77400.0,0.012919]
[1744135374999,0.01636763,77409.0,77406.0,0.258376]
[1744135375211,0.00041818,77409.0,77408.0,0.258371]
[1744135375413,0.00041818,77409.0,77408.0,0.271289]
[1744135375622,0.00041818,77409.0,77406.0,0.271295]
[1744135375819,0.00041818,77409.0,77408.0,0.02396186]
[1744135375820,0.28796402,77409.0,77408.0,0.02396186]
[1744135376017,0.39796182,77409.0,77408.0,0.02396186]
[1744135376222,0.41392085,77409.0,77408.0,0.02396186]
[1744135376430,0.258371,77408.0,77407.0,0.01198228]
[1744135376638,0.271289,77408.0,77407.0,0.01198228]
[1744135376843,0.012922,77385.0,77376.0,1.03324444]
[1744135377044,0.012919,77400.0,77377.0,0.35818035]
[1744135377242,0.012919,77400.0,77395.0,0.258413]
[1744135377243,0.34,77399.0,77395.0,0.258413]
[1744135377427,0.258401,77399.0,77396.0,0.02397713]
[1744135377638,0.258407,77397.0,77396.0,0.02397713]
[1744135378015,0.01292,77394.0,77387.0,0.258438]
[1744135378316,0.258429,77391.0,77387.0,0.00041818]
[1744135378591,0.271342,77393.0,77387.0,0.25885818]
[1744135378821,0.258434,77389.0,77387.0,0.00041818]
[1744135378937,0.012921,77393.0,77387.0,0.00041818]
[1744135379137,0.258438,77388.0,77387.0,0.00041818]
[1744135379337,0.271358,77389.0,77387.0,0.00041818]
[1744135379541,0.73761764,77388.0,77387.0,0.00441818]
[1744135379764,0.86387309,77388.0,77387.0,0.00941818]
[1744135380023,0.86387309,77388.0,77387.0,0.00441818]
[1744135380415,0.86387309,77388.0,77387.0,1.8e-07]
[1744135380818,0.012925,77368.0,77362.0,0.01198272]
[1744135381020,0.012926,77363.0,77362.0,0.01210827]
[1744135381227,0.012926,77363.0,77362.0,0.00012555]
[1744135381433,0.258518,77365.0,77362.0,0.00012555]
[1744135381798,0.012925,77367.0,77362.0,0.00012555]
[1744135381950,0.258512,77366.0,77362.0,0.00012555]
[1744135382149,0.012924,77372.0,77363.0,0.012926]
[1744135382330,0.258494,77371.0,77366.0,0.258511]
[1744135382534,0.258505,77368.0,77362.0,0.00012555]
[1744135382846,0.258508,77367.0,77362.0,0.00112555]
[1744135383015,0.012926,77363.0,77362.0,0.00112555]
[1744135383212,0.012925,77367.0,77363.0,0.001]
[1744135383415,0.258511,77366.0,77363.0,0.001]
[1744135383614,0.258515,77365.0,77363.0,0.001]
[1744135384035,0.012924,77375.0,77366.0,0.271435]
[1744135384228,0.34,77376.0,77373.0,0.258487]
[1744135384511,0.611402,77376.0,77371.0,0.271416]
[1744135384793,0.34,77374.0,77372.0,0.258491]
[1744135385088,0.012924,77372.0,77368.0,0.01454085]
[1744135385436,0.258494,77372.0,77368.0,0.27304385]
[1744135385644,0.012925,77369.0,77363.0,0.001]
[1744135385773,0.258516,77365.0,77363.0,0.001]
[1744135385982,0.598516,77365.0,77363.0,0.001]
[1744135386163,0.611441,77365.0,77363.0,0.001]
[1744135386602,0.012925,77369.0,77365.0,0.012925]
[1744135386603,0.34,77369.0,77365.0,0.012925]
[1744135386804,0.258445,77386.0,77378.0,0.012923]
[1744135387009,0.34,77379.0,77373.0,0.012924]
[1744135387203,0.34,77379.0,77376.0,0.012923]
[1744135387406,0.34,77379.0,77378.0,0.258471]
[1744135387673,0.258371,77408.0,77399.0,0.258401]
[1744135388031,0.258371,77408.0,77396.0,0.01292]
[1744135388032,0.258394,77402.0,77397.0,0.01292]
[1744135388206,0.012919,77404.0,77396.0,0.21836]
[1744135388207,0.12625864,77407.0,77400.0,0.012919]
[1744135388409,0.012918,77411.0,77404.0,0.012919]
[1744135388611,0.012918,77406.0,77396.0,0.20544]
[1744135388815,0.39754264,77410.0,77399.0,0.01292]
[1744135389017,0.00041818,77410.0,77409.0,0.271285]
[1744135389201,0.00041818,77410.0,77409.0,0.28582585]
[1744135389403,0.0001677,77424.0,77423.0,0.012916]
[1744135389605,0.0001261,77424.0,77423.0,1.64393924]
[1744135389803,0.0001261,77424.0,77423.0,1.64135649]
[1744135392011,0.0001261,77424.0,77423.0,1.51509785]
[1744135392217,0.0001261,77424.0,77423.0,1.52809785]
[1744135392633,0.0001261,77424.0,77423.0,1.52309785]
[1744135392835,0.0001261,77424.0,77423.0,1.24632]
[1744135393033,0.0001261,77424.0,77423.0,1.250236]
[1744135393425,0.0001261,77424.0,77423.0,1.257236]
[1744135393621,2.153e-05,77424.0,77423.0,1.242236]
[1744135393823,2.153e-05,77424.0,77423.0,1.22932]
[1744135394098,0.01293653,77424.0,77423.0,1.23532]
[1744135394257,0.53349889,77424.0,77423.0,0.006]
[1744135394425,0.012917,77415.0,77414.0,0.11384271]
[1744135395114,0.611264,77415.0,77414.0,0.11384271]
[1744135395679,0.342,77415.0,77414.0,0.11384271]
[1744135395884,0.613264,77415.0,77414.0,0.11384271]
[1744135396090,0.613264,77415.0,77411.0,0.20536]
[1744135396091,0.34,77414.0,77411.0,0.20536]
[1744135396267,0.598351,77414.0,77411.0,0.463717]
[1744135397200,0.34,77415.0,77412.0,0.258356]
[1744135397394,0.01622895,77414.0,77412.0,0.258356]
[1744135397600,0.34,77415.0,77412.0,0.258356]
[1744135397961,0.352917,77412.0,77411.0,0.20636]
[1744135398162,0.47917564,77412.0,77411.0,0.001]
[1744135398987,0.012918,77408.0,77402.0,0.012919]
[1744135399178,0.34,77408.0,77406.0,0.258376]
[1744135399380,0.258305,77428.0,77423.0,0.271237]
[1744135399518,0.38460017,77424.0,77420.0,0.271244]
[1744135399694,0.12628017,77424.0,77422.0,0.258322]
[1744135399899,2.153e-05,77424.0,77422.0,0.258322]
[1744135400096,2.153e-05,77424.0,77423.0,0.012916]
[1744135400853,0.00202153,77424.0,77423.0,0.012916]
[1744135401446,2.153e-05,77424.0,77423.0,0.012916]
[1744135401649,0.00302153,77424.0,77423.0,0.012916]
[1744135402434,0.00302153,77424.0,77422.0,0.012916]
[1744135402666,0.00302153,77424.0,77423.0,0.28577785]
[1744135403268,2.153e-05,77424.0,77423.0,0.28577785]
[1744135403468,0.00202153,77424.0,77423.0,0.28577785]
[1744135403692,0.00202153,77424.0,77423.0,0.41203649]
[1744135404124,2.153e-05,77424.0,77423.0,0.41203649]
[1744135404297,2.153e-05,77424.0,77423.0,0.41603649]
[1744135404775,2.153e-05,77424.0,77423.0,0.41203649]
[1744135405213,2.153e-05,77424.0,77423.0,0.42103649]
[1744135405548,0.0004,77429.0,77426.0,0.303911]
[1744135405549,2.3e-07,77429.0,77426.0,0.303911]
[1744135405749,7.3e-07,77431.0,77430.0,0.27283785]
[1744135405955,7.3e-07,77431.0,77430.0,0.71593138]
[1744135406086,0.0001675,77443.0,77430.0,0.71593138]
[1744135406087,0.0001675,77443.0,77440.0,0.271177]
[1744135406286,0.0001675,77443.0,77440.0,0.41197649]
[1744135407098,0.0001675,77443.0,77440.0,0.42158016]
[1744135407302,0.0001675,77443.0,77440.0,0.29532152]
[1744135407505,0.0001675,77443.0,77440.0,0.42158016]
[1744135407726,0.0001675,77443.0,77440.0,0.29532152]
[1744135408041,0.2242517,77442.0,77440.0,0.00960367]
[1744135408247,0.13917164,77441.0,77440.0,0.01560367]
[1744135408481,0.13917164,77441.0,77440.0,0.006]
[1744135408482,0.47917164,77441.0,77440.0,0.006]
[1744135408683,0.012914,77434.0,77430.0,0.2048]
[1744135408885,0.012914,77435.0,77430.0,0.217714]
[1744135409006,0.258285,77434.0,77430.0,0.2048]
[1744135409208,0.271206,77432.0,77430.0,0.2048]
[1744135409402,0.271197,77435.0,77430.0,0.2048]
[1744135409609,0.34,77440.0,77439.0,0.27118]
[1744135409811,0.1,77450.0,77442.0,0.258257]
[1744135410005,0.258247,77446.0,77442.0,0.271169]
[1744135410264,0.012911,77449.0,77440.0,0.258264]
[1744135410265,0.271154,77447.0,77441.0,0.012913]
[1744135410506,0.271154,77447.0,77440.0,0.261264]
[1744135410507,0.012913,77441.0,77440.0,0.003]
[1744135410687,0.352913,77441.0,77440.0,0.01253034]
[1744135410844,0.258277,77437.0,77432.0,0.258289]
[1744135411245,0.271207,77432.0,77430.0,0.2048]
[1744135411460,0.258289,77433.0,77430.0,0.2078]
[1744135411661,0.258288,77433.0,77430.0,0.2078]
[1744135411865,0.34,77442.0,77435.0,0.012914]
[1744135412090,0.34,77442.0,77441.0,0.012913]
[1744135412322,0.0011675,77443.0,77442.0,0.258257]